[Event "Early-Titled-Tuesday-Blitz-June-18-2024"]
[Site "Chess.com"]
[Date "2024.06.18"]
[Round "8"]
[White "Crazy_girl99"]
[Black "falzehope0"]
[Result "1-0"]
[WhiteElo "2615"]
[BlackElo "2443"]
[TimeControl "180+1"]
[EndTime "9:25:42 PDT"]
[Termination "Crazy_girl99 won by resignation"]

1. e4 {[%clk 0:03:00.9]} 1... d5 {[%clk 0:02:57.1]} 2. exd5 {[%clk 0:03:00.7]}
2... Nf6 {[%clk 0:02:57.4]} 3. Nc3 {[%clk 0:02:59.5]} 3... g6 {[%clk 0:02:56.7]}
4. Bc4 {[%clk 0:02:59.9]} 4... Bg7 {[%clk 0:02:56.9]} 5. Nf3 {[%clk 0:03:00.1]}
5... Nbd7 {[%clk 0:02:54.9]} 6. d4 {[%clk 0:02:48.8]} 6... a6 {[%clk 0:02:53.4]}
7. O-O {[%clk 0:02:45.6]} 7... Nb6 {[%clk 0:02:52.7]} 8. Bb3 {[%clk 0:02:46]}
8... O-O {[%clk 0:02:48.5]} 9. h3 {[%clk 0:02:45.7]} 9... Nbxd5 {[%clk 0:02:47]}
10. Nxd5 {[%clk 0:02:45.5]} 10... Nxd5 {[%clk 0:02:47.8]} 11. c4 {[%clk
0:02:45.7]} 11... Nf6 {[%clk 0:02:44.6]} 12. Be3 {[%clk 0:02:43.4]} 12... b6
{[%clk 0:02:43.9]} 13. d5 {[%clk 0:02:38]} 13... Nd7 {[%clk 0:02:42.1]} 14. Nd4
{[%clk 0:02:37.3]} 14... Nc5 {[%clk 0:02:40.8]} 15. Bc2 {[%clk 0:02:37.1]} 15...
a5 {[%clk 0:02:37.7]} 16. Nc6 {[%clk 0:02:34.4]} 16... Qd7 {[%clk 0:02:33.6]}
17. Re1 {[%clk 0:02:32.4]} 17... Re8 {[%clk 0:02:30.3]} 18. Bd4 {[%clk
0:02:25.1]} 18... Bf8 {[%clk 0:02:21.2]} 19. Qf3 {[%clk 0:02:20.9]} 19... Bb7
{[%clk 0:02:18]} 20. Ne5 {[%clk 0:02:19.7]} 20... Qd8 {[%clk 0:02:02.7]} 21.
Qxf7+ {[%clk 0:02:18]} 1-0

[Event "Early-Titled-Tuesday-Blitz-June-18-2024"]
[Site "Chess.com"]
[Date "2024.06.18"]
[Round "8"]
[White "Guldona_2007"]
[Black "betta2004"]
[Result "1-0"]
[WhiteElo "2287"]
[BlackElo "2459"]
[TimeControl "180+1"]
[EndTime "9:25:43 PDT"]
[Termination "Guldona_2007 won by resignation"]

1. e4 {[%clk 0:03:00]} 1... d6 {[%clk 0:02:55.2]} 2. d4 {[%clk 0:02:58.5]} 2...
Nf6 {[%clk 0:02:55.8]} 3. Nc3 {[%clk 0:02:58.4]} 3... e5 {[%clk 0:02:53.8]} 4.
Nf3 {[%clk 0:02:51.6]} 4... Nbd7 {[%clk 0:02:52.1]} 5. Bc4 {[%clk 0:02:49.6]}
5... c6 {[%clk 0:02:47.2]} 6. dxe5 {[%clk 0:02:46.3]} 6... dxe5 {[%clk
0:02:44.7]} 7. Ng5 {[%clk 0:02:45]} 7... Bc5 {[%clk 0:02:28.4]} 8. Nxf7 {[%clk
0:02:30]} 8... Qb6 {[%clk 0:02:27.4]} 9. Nxh8 {[%clk 0:02:20.7]} 9... Bxf2+
{[%clk 0:02:26.3]} 10. Kf1 {[%clk 0:02:20.5]} 10... Nc5 {[%clk 0:02:20]} 11. Qd6
{[%clk 0:02:07]} 1-0

[Event "Early-Titled-Tuesday-Blitz-June-18-2024"]
[Site "Chess.com"]
[Date "2024.06.18"]
[Round "8"]
[White "Moon_stone123"]
[Black "NovakRatko"]
[Result "1-0"]
[WhiteElo "2604"]
[BlackElo "2425"]
[TimeControl "180+1"]
[EndTime "9:25:58 PDT"]
[Termination "Moon_stone123 won by resignation"]

1. e4 {[%clk 0:03:00.9]} 1... d5 {[%clk 0:02:58.3]} 2. exd5 {[%clk 0:02:56.2]}
2... c6 {[%clk 0:02:58.6]} 3. d4 {[%clk 0:02:53.9]} 3... cxd5 {[%clk 0:02:58.6]}
4. Bd3 {[%clk 0:02:52.8]} 4... Nc6 {[%clk 0:02:58.6]} 5. c3 {[%clk 0:02:53.1]}
5... g6 {[%clk 0:02:57.7]} 6. Nf3 {[%clk 0:02:51.3]} 6... f6 {[%clk 0:02:58.4]}
7. O-O {[%clk 0:02:49]} 7... Bg7 {[%clk 0:02:59]} 8. Re1 {[%clk 0:02:46.3]} 8...
Bg4 {[%clk 0:02:59.5]} 9. Nbd2 {[%clk 0:02:44.4]} 9... e5 {[%clk 0:02:59.2]} 10.
dxe5 {[%clk 0:02:38]} 10... Bxf3 {[%clk 0:02:21.6]} 11. exf6+ {[%clk 0:01:53.6]}
11... Kf7 {[%clk 0:02:06.1]} 12. fxg7 {[%clk 0:01:52]} 12... Bxd1 {[%clk
0:01:55.9]} 13. gxh8=Q {[%clk 0:01:51.7]} 1-0

[Event "Early-Titled-Tuesday-Blitz-June-18-2024"]
[Site "Chess.com"]
[Date "2024.06.18"]
[Round "8"]
[White "Pelusiansky"]
[Black "xasid81"]
[Result "1-0"]
[WhiteElo "2458"]
[BlackElo "2613"]
[TimeControl "180+1"]
[EndTime "9:26:14 PDT"]
[Termination "Pelusiansky won by resignation"]

1. c4 {[%clk 0:03:00.9]} 1... Nf6 {[%clk 0:02:56.7]} 2. Nc3 {[%clk 0:03:00.5]}
2... e6 {[%clk 0:02:56.2]} 3. e4 {[%clk 0:02:56.5]} 3... d5 {[%clk 0:02:55.2]}
4. e5 {[%clk 0:02:54.3]} 4... Ne4 {[%clk 0:02:52.7]} 5. Nf3 {[%clk 0:02:51.9]}
5... Nxc3 {[%clk 0:02:51.8]} 6. dxc3 {[%clk 0:02:49.8]} 6... Be7 {[%clk
0:02:51.2]} 7. h4 {[%clk 0:02:42.5]} 7... dxc4 {[%clk 0:02:49.4]} 8. Qa4+ {[%clk
0:02:38.8]} 8... Bd7 {[%clk 0:02:48.1]} 9. Qxc4 {[%clk 0:02:38.4]} 9... Bc6
{[%clk 0:02:48.5]} 10. Qg4 {[%clk 0:02:34.4]} 10... Kf8 {[%clk 0:02:42.8]} 11.
Be3 {[%clk 0:02:25.1]} 11... Nd7 {[%clk 0:02:37.4]} 12. O-O-O {[%clk 0:02:23]}
12... Qe8 {[%clk 0:02:32.7]} 13. h5 {[%clk 0:02:20]} 13... h6 {[%clk 0:02:32.2]}
14. Rh3 {[%clk 0:02:17.6]} 14... b6 {[%clk 0:02:27.5]} 15. Rg3 {[%clk
0:02:14.9]} 15... Rh7 {[%clk 0:02:19]} 16. Bxh6 {[%clk 0:02:03.1]} 16... Bxf3
{[%clk 0:02:18]} 17. Bxg7+ {[%clk 0:01:53.4]} 17... Kg8 {[%clk 0:02:14.8]} 18.
gxf3 {[%clk 0:01:48.6]} 18... f5 {[%clk 0:02:12.2]} 19. exf6 {[%clk 0:01:46.2]}
19... Ne5 {[%clk 0:02:08.2]} 20. Qxe6+ {[%clk 0:01:40]} 1-0

[Event "Early-Titled-Tuesday-Blitz-June-18-2024"]
[Site "Chess.com"]
[Date "2024.06.18"]
[Round "8"]
[White "FredddieCroderg"]
[Black "ReadySkate"]
[Result "0-1"]
[WhiteElo "2330"]
[BlackElo "2794"]
[TimeControl "180+1"]
[EndTime "9:26:19 PDT"]
[Termination "ReadySkate won by checkmate"]

1. e4 {[%clk 0:02:54.2]} 1... c5 {[%clk 0:02:59.6]} 2. Bc4 {[%clk 0:02:53.3]}
2... e6 {[%clk 0:02:59.9]} 3. Qf3 {[%clk 0:02:52.7]} 3... Nc6 {[%clk 0:02:59.8]}
4. d3 {[%clk 0:02:50.9]} 4... Nf6 {[%clk 0:02:59.5]} 5. Nc3 {[%clk 0:02:50.4]}
5... Ne5 {[%clk 0:02:58.8]} 6. Qg3 {[%clk 0:02:50.1]} 6... Nxc4 {[%clk
0:02:58.7]} 7. dxc4 {[%clk 0:02:51]} 7... d6 {[%clk 0:02:56.1]} 8. Be3 {[%clk
0:02:46.6]} 8... Be7 {[%clk 0:02:53.1]} 9. O-O-O {[%clk 0:02:45.7]} 9... Qa5
{[%clk 0:02:43.4]} 10. Qxg7 {[%clk 0:02:32.5]} 10... Rg8 {[%clk 0:02:42.2]} 11.
Qh6 {[%clk 0:02:32.3]} 11... Rxg2 {[%clk 0:02:40.7]} 12. Nb5 {[%clk 0:02:03.5]}
12... Rg6 {[%clk 0:02:24.4]} 13. Qf4 {[%clk 0:01:56.9]} 13... e5 {[%clk
0:02:19.1]} 14. Qh4 {[%clk 0:01:49.1]} 14... Qxa2 {[%clk 0:02:14.5]} 15. Nxd6+
{[%clk 0:01:47.6]} 15... Bxd6 {[%clk 0:02:13]} 16. Rxd6 {[%clk 0:01:47.2]} 16...
Qa1+ {[%clk 0:02:11.6]} 17. Kd2 {[%clk 0:01:45.9]} 17... Nxe4+ {[%clk
0:02:12.2]} 18. Qxe4 {[%clk 0:01:39.9]} 18... Rxd6+ {[%clk 0:02:11.5]} 19. Kc3
{[%clk 0:01:35]} 19... Qa5+ {[%clk 0:02:10.7]} 20. Kb3 {[%clk 0:01:32.2]} 20...
Rb6# {[%clk 0:02:11.3]} 0-1

[Event "Early-Titled-Tuesday-Blitz-June-18-2024"]
[Site "Chess.com"]
[Date "2024.06.18"]
[Round "8"]
[White "Mikhail_Golubev"]
[Black "CristhianPortalR"]
[Result "1-0"]
[WhiteElo "2660"]
[BlackElo "2505"]
[TimeControl "180+1"]
[EndTime "9:26:24 PDT"]
[Termination "Mikhail_Golubev won by resignation"]

1. e4 {[%clk 0:03:00.9]} 1... c5 {[%clk 0:03:00]} 2. Nf3 {[%clk 0:03:00.7]} 2...
d6 {[%clk 0:03:00.4]} 3. d4 {[%clk 0:03:00.8]} 3... cxd4 {[%clk 0:03:01.3]} 4.
Nxd4 {[%clk 0:03:01.2]} 4... Nf6 {[%clk 0:03:00.6]} 5. Nc3 {[%clk 0:03:01.7]}
5... a6 {[%clk 0:03:00.7]} 6. Bc4 {[%clk 0:03:02]} 6... e6 {[%clk 0:03:00.6]} 7.
Bb3 {[%clk 0:03:02.3]} 7... Nbd7 {[%clk 0:02:58.7]} 8. f4 {[%clk 0:03:00.9]}
8... Nc5 {[%clk 0:02:58.1]} 9. f5 {[%clk 0:03:01]} 9... e5 {[%clk 0:02:43.7]}
10. Nde2 {[%clk 0:02:58]} 10... Bd7 {[%clk 0:02:36.3]} 11. Bg5 {[%clk
0:02:51.1]} 11... Bc6 {[%clk 0:02:36]} 12. Bd5 {[%clk 0:02:39.9]} 12... Be7
{[%clk 0:02:34.2]} 13. Bxf6 {[%clk 0:02:39.2]} 13... Bxf6 {[%clk 0:02:33.8]} 14.
O-O {[%clk 0:02:34.6]} 14... O-O {[%clk 0:02:33.4]} 15. Kh1 {[%clk 0:02:34.5]}
15... Qc7 {[%clk 0:02:27.1]} 16. Ng3 {[%clk 0:02:29.5]} 16... Bg5 {[%clk
0:02:06.7]} 17. Qg4 {[%clk 0:02:22.2]} 17... Qd8 {[%clk 0:01:47]} 18. f6 {[%clk
0:01:52.7]} 18... g6 {[%clk 0:01:46]} 19. Qxg5 {[%clk 0:01:47.3]} 1-0

[Event "Early-Titled-Tuesday-Blitz-June-18-2024"]
[Site "Chess.com"]
[Date "2024.06.18"]
[Round "8"]
[White "Hudijegszid"]
[Black "mangochessgo"]
[Result "0-1"]
[WhiteElo "2524"]
[BlackElo "2673"]
[TimeControl "180+1"]
[EndTime "9:27:02 PDT"]
[Termination "mangochessgo won by resignation"]

1. b3 {[%clk 0:02:54.1]} 1... Nf6 {[%clk 0:03:00.9]} 2. Bb2 {[%clk 0:02:54.4]}
2... b6 {[%clk 0:03:01.1]} 3. c4 {[%clk 0:02:49.5]} 3... Bb7 {[%clk 0:03:01.2]}
4. Nf3 {[%clk 0:02:45.8]} 4... c5 {[%clk 0:02:58.7]} 5. g3 {[%clk 0:02:45.6]}
5... d6 {[%clk 0:02:54.6]} 6. Bg2 {[%clk 0:02:45.4]} 6... Nbd7 {[%clk
0:02:54.4]} 7. O-O {[%clk 0:02:44.9]} 7... e6 {[%clk 0:02:53.8]} 8. Nc3 {[%clk
0:02:45.4]} 8... Be7 {[%clk 0:02:54.1]} 9. e3 {[%clk 0:02:43.7]} 9... O-O {[%clk
0:02:53.8]} 10. d4 {[%clk 0:02:44]} 10... Ne4 {[%clk 0:02:49.1]} 11. d5 {[%clk
0:02:40.4]} 11... Nxc3 {[%clk 0:02:46.6]} 12. Bxc3 {[%clk 0:02:41.3]} 12... exd5
{[%clk 0:02:46.8]} 13. cxd5 {[%clk 0:02:41]} 13... Bf6 {[%clk 0:02:45]} 14. Rc1
{[%clk 0:02:30.7]} 14... Bxc3 {[%clk 0:02:44.3]} 15. Rxc3 {[%clk 0:02:30.8]}
15... Nf6 {[%clk 0:02:45.2]} 16. Rd3 {[%clk 0:02:30.7]} 16... Ba6 {[%clk
0:02:44.5]} 17. Re1 {[%clk 0:02:26.8]} 17... Bxd3 {[%clk 0:02:44.1]} 18. Qxd3
{[%clk 0:02:27.7]} 18... Re8 {[%clk 0:02:42.8]} 19. e4 {[%clk 0:02:27.7]} 19...
Rc8 {[%clk 0:02:32.3]} 20. Nh4 {[%clk 0:02:26.5]} 20... g6 {[%clk 0:02:28]} 21.
Nf3 {[%clk 0:02:22.8]} 21... Rc7 {[%clk 0:02:26.6]} 22. Nd2 {[%clk 0:02:22.5]}
22... Rce7 {[%clk 0:02:25.7]} 23. f4 {[%clk 0:02:20.9]} 23... b5 {[%clk
0:02:20.5]} 24. Qxb5 {[%clk 0:02:16.1]} 24... Nxd5 {[%clk 0:02:19.2]} 25. Rd1
{[%clk 0:02:10]} 25... Nc3 {[%clk 0:02:19]} 26. Qf1 {[%clk 0:02:08.7]} 26...
Nxd1 {[%clk 0:02:18.5]} 27. Qxd1 {[%clk 0:02:09.6]} 27... Qa5 {[%clk 0:02:17.1]}
28. Nc4 {[%clk 0:02:08.4]} 28... Qxa2 {[%clk 0:02:14.8]} 29. Nxd6 {[%clk
0:02:08.4]} 29... Rd8 {[%clk 0:02:03.3]} 30. e5 {[%clk 0:02:08.6]} 30... Qb2
{[%clk 0:01:59.6]} 31. Bd5 {[%clk 0:01:55.8]} 31... Qd4+ {[%clk 0:01:44.1]} 32.
Qxd4 {[%clk 0:01:56.2]} 32... cxd4 {[%clk 0:01:45]} 33. Kf2 {[%clk 0:01:56.9]}
33... Rxd6 {[%clk 0:01:42.7]} 34. exd6 {[%clk 0:01:56.1]} 34... Rd7 {[%clk
0:01:43.2]} 35. Kf3 {[%clk 0:01:56.7]} 35... Rxd6 {[%clk 0:01:43.5]} 36. Ke4
{[%clk 0:01:57.3]} 36... Rxd5 {[%clk 0:01:42.8]} 0-1

[Event "Early-Titled-Tuesday-Blitz-June-18-2024"]
[Site "Chess.com"]
[Date "2024.06.18"]
[Round "8"]
[White "Nf3c5"]
[Black "AjedrezInteligente"]
[Result "1-0"]
[WhiteElo "2603"]
[BlackElo "2422"]
[TimeControl "180+1"]
[EndTime "9:27:15 PDT"]
[Termination "Nf3c5 won by resignation"]

1. Nf3 {[%clk 0:02:54.9]} 1... d5 {[%clk 0:03:00]} 2. g3 {[%clk 0:02:55.4]} 2...
g6 {[%clk 0:03:00.4]} 3. c4 {[%clk 0:02:49.3]} 3... Bg7 {[%clk 0:03:01.3]} 4.
cxd5 {[%clk 0:02:48.8]} 4... Nf6 {[%clk 0:03:01.6]} 5. e4 {[%clk 0:02:31.9]}
5... O-O {[%clk 0:03:01.8]} 6. Nc3 {[%clk 0:02:31.2]} 6... c6 {[%clk 0:03:02.2]}
7. dxc6 {[%clk 0:02:15.3]} 7... Nxc6 {[%clk 0:03:03.1]} 8. d4 {[%clk 0:02:11.1]}
8... Bg4 {[%clk 0:03:02.4]} 9. d5 {[%clk 0:02:11.8]} 9... Nd4 {[%clk 0:02:21.9]}
10. Bg2 {[%clk 0:01:48.4]} 10... Nd7 {[%clk 0:02:20.2]} 11. Be3 {[%clk
0:01:45.4]} 11... Nxf3+ {[%clk 0:02:09.2]} 12. Bxf3 {[%clk 0:01:46]} 12... Bxf3
{[%clk 0:02:09.8]} 13. Qxf3 {[%clk 0:01:45.5]} 13... Qa5 {[%clk 0:02:10.4]} 14.
Bd2 {[%clk 0:01:35.2]} 14... Ne5 {[%clk 0:02:10.4]} 15. Qe2 {[%clk 0:01:35.5]}
15... Rac8 {[%clk 0:02:10.1]} 16. O-O {[%clk 0:01:31.7]} 16... Nc4 {[%clk
0:02:07.6]} 17. Be1 {[%clk 0:01:30.6]} 17... Qb4 {[%clk 0:01:53.4]} 18. Rb1
{[%clk 0:01:21.8]} 18... Nxb2 {[%clk 0:01:28.4]} 19. Rxb2 {[%clk 0:01:17.3]} 1-0

[Event "Early-Titled-Tuesday-Blitz-June-18-2024"]
[Site "Chess.com"]
[Date "2024.06.18"]
[Round "8"]
[White "eltenedor"]
[Black "urano56"]
[Result "1-0"]
[WhiteElo "2134"]
[BlackElo "2385"]
[TimeControl "180+1"]
[EndTime "9:27:44 PDT"]
[Termination "eltenedor won by resignation"]

1. f4 {[%clk 0:03:00.9]} 1... d5 {[%clk 0:02:48.8]} 2. b3 {[%clk 0:02:59.9]}
2... c5 {[%clk 0:02:47.6]} 3. e3 {[%clk 0:02:58.1]} 3... Nc6 {[%clk 0:02:48.1]}
4. Bb5 {[%clk 0:02:57.1]} 4... Nf6 {[%clk 0:02:46.4]} 5. Nf3 {[%clk 0:02:56]}
5... e6 {[%clk 0:02:44.9]} 6. Bxc6+ {[%clk 0:02:52.1]} 6... bxc6 {[%clk
0:02:44.7]} 7. Ne5 {[%clk 0:02:51.5]} 7... Qc7 {[%clk 0:02:43.5]} 8. Bb2 {[%clk
0:02:47.5]} 8... Bd6 {[%clk 0:02:44.1]} 9. g4 {[%clk 0:02:45.8]} 9... Ba6 {[%clk
0:02:40.5]} 10. g5 {[%clk 0:02:40.6]} 10... Ne4 {[%clk 0:02:39.9]} 11. d3 {[%clk
0:02:29.3]} 11... Bxe5 {[%clk 0:02:37.4]} 12. Bxe5 {[%clk 0:02:24]} 12... Qa5+
{[%clk 0:02:26]} 13. Nd2 {[%clk 0:01:46.3]} 13... Nc3 {[%clk 0:02:12.7]} 14. Qh5
{[%clk 0:01:39]} 14... O-O {[%clk 0:01:54.7]} 15. Rg1 {[%clk 0:01:25.7]} 15...
c4 {[%clk 0:01:28.4]} 16. Rg3 {[%clk 0:01:02.3]} 16... g6 {[%clk 0:01:11.6]} 17.
Qxh7+ {[%clk 0:00:56.3]} 1-0

[Event "Early-Titled-Tuesday-Blitz-June-18-2024"]
[Site "Chess.com"]
[Date "2024.06.18"]
[Round "8"]
[White "PapaieDudu"]
[Black "rollercoaster29"]
[Result "0-1"]
[WhiteElo "2346"]
[BlackElo "2515"]
[TimeControl "180+1"]
[EndTime "9:27:48 PDT"]
[Termination "rollercoaster29 won by resignation"]

1. Nf3 {[%clk 0:02:59.9]} 1... Nf6 {[%clk 0:02:58.3]} 2. d4 {[%clk 0:03:00.2]}
2... g6 {[%clk 0:02:58.2]} 3. c4 {[%clk 0:03:01.1]} 3... Bg7 {[%clk 0:02:58.2]}
4. Nc3 {[%clk 0:03:02]} 4... d6 {[%clk 0:02:56.3]} 5. g3 {[%clk 0:03:02.6]} 5...
O-O {[%clk 0:02:55.3]} 6. Bg2 {[%clk 0:03:03.5]} 6... c5 {[%clk 0:02:55.8]} 7.
O-O {[%clk 0:02:58.4]} 7... Nc6 {[%clk 0:02:55.6]} 8. d5 {[%clk 0:02:58.4]} 8...
Na5 {[%clk 0:02:56]} 9. b3 {[%clk 0:02:57.6]} 9... Nxd5 {[%clk 0:02:16.8]} 10.
Nxd5 {[%clk 0:02:58.5]} 10... Bxa1 {[%clk 0:02:16.5]} 11. Bh6 {[%clk 0:02:59.2]}
11... Bg7 {[%clk 0:02:16.4]} 12. Bxg7 {[%clk 0:02:59.8]} 12... Kxg7 {[%clk
0:02:17.1]} 13. h4 {[%clk 0:03:00.7]} 13... e6 {[%clk 0:02:08.3]} 14. Qa1+
{[%clk 0:02:59.7]} 14... f6 {[%clk 0:02:07.8]} 15. Nf4 {[%clk 0:02:57.7]} 15...
e5 {[%clk 0:02:05.2]} 16. Nd5 {[%clk 0:02:57.4]} 16... Be6 {[%clk 0:02:05]} 17.
Ne3 {[%clk 0:02:57.4]} 17... Nc6 {[%clk 0:02:03.5]} 18. Rd1 {[%clk 0:02:57.1]}
18... Nd4 {[%clk 0:02:03]} 19. Kf1 {[%clk 0:02:54.6]} 19... Qd7 {[%clk
0:01:59.1]} 20. Ng1 {[%clk 0:02:54]} 20... Rab8 {[%clk 0:01:56.1]} 21. Rd2
{[%clk 0:02:52.3]} 21... b5 {[%clk 0:01:55.7]} 22. cxb5 {[%clk 0:02:52.4]} 22...
d5 {[%clk 0:01:53.3]} 23. Nd1 {[%clk 0:02:48.1]} 23... Nxb5 {[%clk 0:01:51]} 24.
e3 {[%clk 0:02:48.2]} 24... d4 {[%clk 0:01:50.1]} 25. a4 {[%clk 0:02:46.5]}
25... Nd6 {[%clk 0:01:49.5]} 26. Qc1 {[%clk 0:02:36.7]} 26... Rfc8 {[%clk
0:01:42.8]} 27. h5 {[%clk 0:02:32]} 27... Bxb3 {[%clk 0:01:36.5]} 28. h6+ {[%clk
0:02:31.4]} 28... Kh8 {[%clk 0:01:34.4]} 29. f4 {[%clk 0:02:29]} 29... Nc4
{[%clk 0:01:23.3]} 30. Rd3 {[%clk 0:02:29.2]} 30... Bxd1 {[%clk 0:01:23.4]} 31.
Rxd1 {[%clk 0:02:25.1]} 31... Qxa4 {[%clk 0:01:08]} 32. fxe5 {[%clk 0:02:20.3]}
32... Qxd1+ {[%clk 0:01:07.1]} 33. Qxd1 {[%clk 0:02:20.2]} 33... Nxe3+ {[%clk
0:01:08]} 34. Ke1 {[%clk 0:02:20.4]} 34... Nxd1 {[%clk 0:01:08]} 35. Kxd1 {[%clk
0:02:15.2]} 35... Rb1+ {[%clk 0:01:07.8]} 36. Kc2 {[%clk 0:02:15.9]} 36... Rcb8
{[%clk 0:01:08.4]} 37. exf6 {[%clk 0:02:09.4]} 37... c4 {[%clk 0:01:05.8]} 38.
Bb7 {[%clk 0:01:59.2]} 38... R8xb7 {[%clk 0:01:03.9]} 0-1

[Event "Early-Titled-Tuesday-Blitz-June-18-2024"]
[Site "Chess.com"]
[Date "2024.06.18"]
[Round "8"]
[White "Kgli1m"]
[Black "Weifd"]
[Result "1/2-1/2"]
[WhiteElo "2101"]
[BlackElo "2360"]
[TimeControl "180+1"]
[EndTime "9:27:53 PDT"]
[Termination "Game drawn by repetition"]

1. d4 {[%clk 0:02:52.6]} 1... Nf6 {[%clk 0:02:59.5]} 2. b3 {[%clk 0:02:52.9]}
2... d5 {[%clk 0:02:59.1]} 3. Nf3 {[%clk 0:02:52.2]} 3... e6 {[%clk 0:02:59.2]}
4. Bb2 {[%clk 0:02:52.7]} 4... c5 {[%clk 0:02:59.4]} 5. e3 {[%clk 0:02:53.3]}
5... Be7 {[%clk 0:02:58.5]} 6. c4 {[%clk 0:02:53.1]} 6... O-O {[%clk 0:02:58.6]}
7. Nbd2 {[%clk 0:02:53.1]} 7... cxd4 {[%clk 0:02:57.8]} 8. exd4 {[%clk
0:02:52.8]} 8... dxc4 {[%clk 0:02:58.4]} 9. bxc4 {[%clk 0:02:53]} 9... b6 {[%clk
0:02:58.6]} 10. Bd3 {[%clk 0:02:52.7]} 10... Bb7 {[%clk 0:02:59.2]} 11. O-O
{[%clk 0:02:53]} 11... Nc6 {[%clk 0:02:56.3]} 12. Qe2 {[%clk 0:02:47.1]} 12...
Rc8 {[%clk 0:02:55.6]} 13. Rfd1 {[%clk 0:02:46.5]} 13... Na5 {[%clk 0:02:51.9]}
14. Rac1 {[%clk 0:02:44.1]} 14... Ba6 {[%clk 0:02:45.9]} 15. Ne5 {[%clk
0:02:30]} 15... Qc7 {[%clk 0:02:23.4]} 16. h3 {[%clk 0:02:27]} 16... Rfd8 {[%clk
0:02:22.9]} 17. g4 {[%clk 0:02:25.4]} 17... Bb4 {[%clk 0:02:18]} 18. g5 {[%clk
0:02:19.4]} 18... Nd7 {[%clk 0:02:18]} 19. Bxh7+ {[%clk 0:02:04.8]} 19... Kxh7
{[%clk 0:02:08.1]} 20. Qh5+ {[%clk 0:02:03.5]} 20... Kg8 {[%clk 0:02:08.8]} 21.
Qxf7+ {[%clk 0:02:02.1]} 21... Kh8 {[%clk 0:02:08.6]} 22. Qh5+ {[%clk
0:01:04.8]} 22... Kg8 {[%clk 0:02:07.6]} 23. Qf7+ {[%clk 0:00:28.3]} 23... Kh8
{[%clk 0:02:06.1]} 24. Qh5+ {[%clk 0:00:16.5]} 24... Kg8 {[%clk 0:02:05.3]} 25.
Qf7+ {[%clk 0:00:16.7]} 1/2-1/2

[Event "Early-Titled-Tuesday-Blitz-June-18-2024"]
[Site "Chess.com"]
[Date "2024.06.18"]
[Round "8"]
[White "ningyzhou"]
[Black "dealshark"]
[Result "0-1"]
[WhiteElo "2153"]
[BlackElo "2452"]
[TimeControl "180+1"]
[EndTime "9:27:56 PDT"]
[Termination "dealshark won by resignation"]

1. e4 {[%clk 0:03:00.8]} 1... c5 {[%clk 0:02:59.5]} 2. Nf3 {[%clk 0:02:59.6]}
2... d6 {[%clk 0:02:59.8]} 3. d4 {[%clk 0:02:59.3]} 3... cxd4 {[%clk 0:03:00.7]}
4. Nxd4 {[%clk 0:02:59.5]} 4... Nf6 {[%clk 0:03:01.3]} 5. Nc3 {[%clk 0:02:58.7]}
5... a6 {[%clk 0:03:01.8]} 6. Bg5 {[%clk 0:02:57.8]} 6... Nbd7 {[%clk
0:03:01.7]} 7. Bc4 {[%clk 0:02:56.4]} 7... h6 {[%clk 0:02:57.3]} 8. Be3 {[%clk
0:02:47.9]} 8... e6 {[%clk 0:02:54.9]} 9. O-O {[%clk 0:02:44.2]} 9... Be7 {[%clk
0:02:55.2]} 10. Bb3 {[%clk 0:02:41.3]} 10... O-O {[%clk 0:02:55.2]} 11. f4
{[%clk 0:02:30.3]} 11... Nc5 {[%clk 0:02:53.7]} 12. Qf3 {[%clk 0:02:29.2]} 12...
Nxb3 {[%clk 0:02:53]} 13. axb3 {[%clk 0:02:28.4]} 13... Qc7 {[%clk 0:02:50.4]}
14. Qg3 {[%clk 0:02:21.6]} 14... Kh7 {[%clk 0:02:27.6]} 15. Ndb5 {[%clk
0:02:15]} 15... Qc6 {[%clk 0:02:14.9]} 16. Nxd6 {[%clk 0:02:14.3]} 16... Bxd6
{[%clk 0:02:09.5]} 17. e5 {[%clk 0:02:14.1]} 17... Nh5 {[%clk 0:02:04.7]} 18.
Qg4 {[%clk 0:01:58.6]} 18... Bc5 {[%clk 0:02:03.7]} 19. Qxh5 {[%clk 0:01:46.1]}
19... Bxe3+ {[%clk 0:02:03.5]} 20. Kh1 {[%clk 0:01:46.5]} 20... b5 {[%clk
0:01:54.3]} 21. Rf3 {[%clk 0:01:44.1]} 21... Bb7 {[%clk 0:01:50.7]} 22. Qh3
{[%clk 0:01:40.9]} 22... Bd4 {[%clk 0:01:45.5]} 23. Rd1 {[%clk 0:01:36.1]} 23...
Rad8 {[%clk 0:01:43.8]} 24. Rfd3 {[%clk 0:01:32.1]} 24... Bb6 {[%clk 0:01:39.7]}
25. Rxd8 {[%clk 0:01:29.7]} 25... Rxd8 {[%clk 0:01:39.4]} 26. Rxd8 {[%clk
0:01:27.9]} 26... Bxd8 {[%clk 0:01:40.3]} 27. Qd3+ {[%clk 0:01:27.8]} 27... g6
{[%clk 0:01:36.2]} 28. Qd2 {[%clk 0:01:22.6]} 28... Bb6 {[%clk 0:01:32.4]} 29.
h3 {[%clk 0:01:19.6]} 29... Be3 {[%clk 0:01:25.2]} 30. Qe2 {[%clk 0:01:18.7]}
30... Bxf4 {[%clk 0:01:23.7]} 0-1

[Event "Early-Titled-Tuesday-Blitz-June-18-2024"]
[Site "Chess.com"]
[Date "2024.06.18"]
[Round "8"]
[White "Dexter_Dyke"]
[Black "gpsji27"]
[Result "0-1"]
[WhiteElo "2481"]
[BlackElo "2347"]
[TimeControl "180+1"]
[EndTime "9:28:09 PDT"]
[Termination "gpsji27 won on time"]

1. e4 {[%clk 0:03:00.9]} 1... e5 {[%clk 0:02:57]} 2. f4 {[%clk 0:03:00.9]} 2...
exf4 {[%clk 0:02:54]} 3. Nf3 {[%clk 0:03:01.4]} 3... d5 {[%clk 0:02:52.1]} 4.
exd5 {[%clk 0:03:01.2]} 4... Nf6 {[%clk 0:02:51.1]} 5. c4 {[%clk 0:03:01.7]}
5... Bg4 {[%clk 0:02:44.9]} 6. d4 {[%clk 0:02:49.9]} 6... Bb4+ {[%clk 0:02:43]}
7. Nc3 {[%clk 0:02:49.6]} 7... O-O {[%clk 0:02:41.3]} 8. Be2 {[%clk 0:02:49.3]}
8... Ne4 {[%clk 0:02:38.5]} 9. Qc2 {[%clk 0:02:03.4]} 9... Bxf3 {[%clk
0:02:33.7]} 10. Bxf3 {[%clk 0:01:58.7]} 10... Qh4+ {[%clk 0:02:29.4]} 11. g3
{[%clk 0:01:31.1]} 11... fxg3 {[%clk 0:02:22.3]} 12. hxg3 {[%clk 0:01:21.8]}
12... Qxg3+ {[%clk 0:02:21.1]} 13. Kf1 {[%clk 0:01:14.1]} 13... Qxf3+ {[%clk
0:02:15]} 14. Kg1 {[%clk 0:01:12.1]} 14... Bxc3 {[%clk 0:02:07.2]} 15. bxc3
{[%clk 0:01:10.9]} 15... f5 {[%clk 0:02:01.6]} 16. Rb1 {[%clk 0:00:42.9]} 16...
Rf6 {[%clk 0:01:58.1]} 17. Qxe4 {[%clk 0:00:32.1]} 17... Rg6+ {[%clk 0:01:52.4]}
0-1